Workbook

Sheet Instructions
A2: INSTRUCTIONS FOR LIQUIDATED DAMAGES WORKSHEET
A3: SAVE THIS WORKBOOK TO YOUR COMPUTER FOR THE CALCULATIONS TO FUNCTION CORRECTLY. Liquidated Damages are calculated for each WSDOT Design-Bid-Build project for failure to complete the physical work within the allotted contract time. The Design Project Office is responsible for completing the Design Liquidated Damages Calculation Sheet to determine the liquidated damages (LD) amount, which will be used in a fill-in for Special Provision 1-08.9.OPT3.FR1. The Design Project Engineer will provide the calculation sheet to the Construction Project Engineer near the 90% milestone to be populated. The Construction Project Engineer will use their workforce projections, as well as any other available information, to fill out the calculation sheet. It is recognized that work force fluctuates during the life of the project. Review the work force for the duration of the project and select a day that best represents the staffing levels anticipated for the majority of the project. Document the workforce assumptions in the Comments/Assumptions/Staffing Notes section at the bottom of the form. Hints will pop-up when you hover over column titles in the worksheet to assist you in completing this form.
A19: State Personnel
A31: This section is intended to capture labor charges for the project office staff, such as PE, APE, Inspectors, material testers, etc. and administration staff who directly support the projects, such as Office Engineer, change order writers, etc. There is an Overhead section below that will address indirect charges such as support office staff, vehicles, office administration staff, redistributed costs, office overhead, office equipment, rent, etc. The 18%-22% Overhead range is adequate for most projects, but if your project will include extensive support from a support group you may want to include the position(s) in the State Personnel section. If the project will be using consultant support include the position(s) in the State Personnel section, including wage rates from the consultant agreement.
A43: Click the down arrow in the left column (under State Personnel) to select personnel that will be working on the project. In the next column to the right, add a description of the work that person will be doing, i.e. Electrical Inspector, Roadway Inspector, Structure Inspector, Materials Tester, etc. As you fill in the next three columns (Each, Hrs/Day & OverTime Hrs), the worksheet will automatically fill in the Hourly Rate, OT Rate and Daily Cost for each employee. The Hourly Rate is a fully loaded rate. OT Rate is straight rate times 1.5, and does not include benefits. If a project requires additional labor from a support office, add those positions on a separate line by clicking on the “Add Personnel” box to the right of the Daily Cost column. You will be asked to enter a row number where you want the line inserted, and the number of personnel you are adding. If three additional people are added, three lines will be added into the worksheet. For those personnel positions that are not specifically listed in the pull-down menu, you can add them by typing the position name in the first column under “State Personnel” and add a description. To find the labor pricing for those positions and calculate hourly rates from annual salaries and benefits, click “State Personnel” at the top of column 1 to access the WSDOT Budget & Financial website. Click on the Current biennium Labor Pricing Template, and select the most recently modified Labor Pricing Template. To use the Labor Pricing Template workbook - select the “Comp Plan” tab at the bottom of the workbook, where you can find a Job Class Code for each job classification. Enter this Job Class Code in the “Position Class Code” column on the “Data Entry tab.” Enter the Percent Time (i.e. 100% for full time, or part time at 20%, 30%, etc.). The Annual Salary and Benefits are displayed in the right-hand columns to use for calculating overtime and hourly rate. The Hourly Rate for each job classification can be determined by adding together the “Salary” and “Benefits” and dividing the total by 2,088 hours. The overtime rate (OT Rate) can be determined by multiplying the Salary (only) times 1.5 and dividing by 2,088 hours. If the project will be using consultants during the duration of the project, use the project-specific consultant agreement to obtain the wage rates.
A71: Per Diem
A76: Enter the number of personnel that will be on per diem during the contract. To find the current per diem rates for lodging and meals for each county, click on “Per Diem” on the left side of the per diem entry line.
A79: Overhead
A84: “Subtotal” is the summation of labor and per diem. “Subtotal including Overhead” is the Subtotal plus a factor of 18%-22%. According to WSDOT’s Accounting Office, project office overhead ranges between 18% and 22%. For most projects 20% is a reasonable average. For projects that are relatively straight-forward 18% may be enough. For larger, more complex projects, projects that may require more support from specialty groups, located in an urban area, high traffic volumes, choosing a higher percentage may be more realistic. Document those assumptions in the Comments/Assumptions/Staffing Notes section at the bottom of the form.
A94: Additional Equipment
A99: If unique equipment is required for the project, such as Zipper Barrier or other highly specialized equipment, it may be listed in the Additional Equipment section.
A102: Calculated Liquidated Damages
A115: The total calculation of daily liquidated damages will be rounded to the nearest $50. Use this amount for the fill-in blank in Special Provision 1-08.9.OPT3.FR1. Project Engineer will sign and date this worksheet.
A120: Comments/Assumptions/Staffing Notes
A130: All assumptions regarding the completion of this form should be captured in this note box at the end of the form. The Liquidated Damages Calculation Sheet will be kept in the Project File documentation in the region.

Sheet Liquidated Damages Calc Sheet
A1: Design Liquidated Damages Calculation Sheet | N1: Rates updated 4/2025
B3: SR | C3: 123 | D3: MP | E3: 100.10 to 120.20 | I3: FA# | K3: NH-0123(456)
B5: Project Title | C5: A street to B street - Paving
B8: Liquidated Damages for Failure to Complete the Work or Portions of the Work On Time
B9: For job classifications not listed, enter the "Hourly Rate" & "OT Rate" for each position
B10: State Personnel | C10: Column1 | D10: Column2 | E10: Column3 | F10: Each | G10: Hrs/Day | H10: OverTime Hrs | I10: Hourly Rate | J10: OT Rate | K10: Daily Cost
C11: =IF(B11<>"","Type desc. - i.e. elec. inspec.","") ->  | F11: =IF(B11<>"",1,"") ->  | H11: =IF(OR(B11="PE -- TE-5",B11="APE -- TE-4"),"0"," ") ->  | I11: =IFERROR(VLOOKUP( B11,'Update Data'!$C$2:$G$13,5,FALSE), ".0001") -> .0001 | J11: =IFERROR(VLOOKUP( B11,'Update Data'!$C$2:$I$13,7,FALSE), ".0001") -> .0001 | K11: =IFERROR((((G11*I11)*F11)+(J11*H11)*F11),"--") -> --
F12: =IF(B12<>"",1,"") ->  | H12: =IF(OR(B12="PE -- TE-5",B12="APE -- TE-4"),"0"," ") ->  | I12: =IFERROR(VLOOKUP( B12,'Update Data'!$C$2:$G$13,5,FALSE), ".0001") -> .0001 | J12: =IFERROR(VLOOKUP( B12,'Update Data'!$C$2:$I$13,7,FALSE), ".0001") -> .0001 | K12: =IFERROR((((G12*I12)*F12)+(J12*H12)*F12),"--") -> --
I13: =IFERROR(VLOOKUP( B13,'Update Data'!$C$2:$G$13,5,FALSE), ".0001") -> .0001 | J13: =IFERROR(VLOOKUP( B13,'Update Data'!$C$2:$I$13,7,FALSE), ".0001") -> .0001 | K13: --
I14: =IFERROR(VLOOKUP( B14,'Update Data'!$C$2:$G$13,5,FALSE), ".0001") -> .0001 | J14: =IFERROR(VLOOKUP( B14,'Update Data'!$C$2:$I$13,7,FALSE), ".0001") -> .0001 | K14: --
I15: =IFERROR(VLOOKUP( B15,'Update Data'!$C$2:$G$13,5,FALSE), ".0001") -> .0001 | J15: =IFERROR(VLOOKUP( B15,'Update Data'!$C$2:$I$13,7,FALSE), ".0001") -> .0001 | K15: --
I16: =IFERROR(VLOOKUP( B16,'Update Data'!$C$2:$G$13,5,FALSE), ".0001") -> .0001 | J16: =IFERROR(VLOOKUP( B16,'Update Data'!$C$2:$I$13,7,FALSE), ".0001") -> .0001 | K16: --
I17: =IFERROR(VLOOKUP( B17,'Update Data'!$C$2:$G$13,5,FALSE), ".0001") -> .0001 | J17: =IFERROR(VLOOKUP( B17,'Update Data'!$C$2:$I$13,7,FALSE), ".0001") -> .0001 | K17: --
I18: =IFERROR(VLOOKUP( B18,'Update Data'!$C$2:$G$13,5,FALSE), ".0001") -> .0001 | J18: =IFERROR(VLOOKUP( B18,'Update Data'!$C$2:$I$13,7,FALSE), ".0001") -> .0001 | K18: --
I19: =IFERROR(VLOOKUP( B19,'Update Data'!$C$2:$G$13,5,FALSE), ".0001") -> .0001 | J19: =IFERROR(VLOOKUP( B19,'Update Data'!$C$2:$I$13,7,FALSE), ".0001") -> .0001 | K19: --
C20: =IF(B20<>"","Type desc. - i.e. elec. inspec.","") ->  | F20: =IF(B20<>"",1,"") ->  | I20: =IFERROR(VLOOKUP( B20,'Update Data'!$C$2:$G$13,5,FALSE), ".0001") -> .0001 | J20: =IFERROR(VLOOKUP( B20,'Update Data'!$C$2:$I$13,7,FALSE), ".0001") -> .0001 | K20: =IFERROR((((G20*I20)*F20)+(J20*H20)*F20),"--") -> --
I21: =IFERROR(VLOOKUP( B21,'Update Data'!$C$2:$G$13,5,FALSE), ".0001") -> .0001 | J21: =IFERROR(VLOOKUP( B21,'Update Data'!$C$2:$I$13,7,FALSE), ".0001") -> .0001 | K21: --
I22: =IFERROR(VLOOKUP( B22,'Update Data'!$C$2:$G$13,5,FALSE), ".0001") -> .0001 | J22: =IFERROR(VLOOKUP( B22,'Update Data'!$C$2:$I$13,7,FALSE), ".0001") -> .0001 | K22: --
I23: =IFERROR(VLOOKUP( B23,'Update Data'!$C$2:$G$13,5,FALSE), ".0001") -> .0001 | J23: =IFERROR(VLOOKUP( B23,'Update Data'!$C$2:$I$13,7,FALSE), ".0001") -> .0001 | K23: --
I24: =IFERROR(VLOOKUP( B24,'Update Data'!$C$2:$G$13,5,FALSE), ".0001") -> .0001 | J24: =IFERROR(VLOOKUP( B24,'Update Data'!$C$2:$I$13,7,FALSE), ".0001") -> .0001 | K24: --
I25: =IFERROR(VLOOKUP( B25,'Update Data'!$C$2:$G$13,5,FALSE), ".0001") -> .0001 | J25: =IFERROR(VLOOKUP( B25,'Update Data'!$C$2:$I$13,7,FALSE), ".0001") -> .0001 | K25: --
I26: =IFERROR(VLOOKUP( B26,'Update Data'!$C$2:$G$13,5,FALSE), ".0001") -> .0001 | J26: =IFERROR(VLOOKUP( B26,'Update Data'!$C$2:$I$13,7,FALSE), ".0001") -> .0001 | K26: --
I27: =IFERROR(VLOOKUP( B27,'Update Data'!$C$2:$G$13,5,FALSE), ".0001") -> .0001 | J27: =IFERROR(VLOOKUP( B27,'Update Data'!$C$2:$I$13,7,FALSE), ".0001") -> .0001 | K27: --
I28: =IFERROR(VLOOKUP( B28,'Update Data'!$C$2:$G$13,5,FALSE), ".0001") -> .0001 | J28: =IFERROR(VLOOKUP( B28,'Update Data'!$C$2:$I$13,7,FALSE), ".0001") -> .0001 | K28: --
I29: =IFERROR(VLOOKUP( B29,'Update Data'!$C$2:$G$13,5,FALSE), ".0001") -> .0001 | J29: =IFERROR(VLOOKUP( B29,'Update Data'!$C$2:$I$13,7,FALSE), ".0001") -> .0001 | K29: --
I30: =IFERROR(VLOOKUP( B30,'Update Data'!$C$2:$G$13,5,FALSE), ".0001") -> .0001 | J30: =IFERROR(VLOOKUP( B30,'Update Data'!$C$2:$I$13,7,FALSE), ".0001") -> .0001 | K30: --
I31: =IFERROR(VLOOKUP( B31,'Update Data'!$C$2:$G$13,5,FALSE), ".0001") -> .0001 | J31: =IFERROR(VLOOKUP( B31,'Update Data'!$C$2:$I$13,7,FALSE), ".0001") -> .0001 | K31: --
I32: =IFERROR(VLOOKUP( B32,'Update Data'!$C$2:$G$13,5,FALSE), ".0001") -> .0001 | J32: =IFERROR(VLOOKUP( B32,'Update Data'!$C$2:$I$13,7,FALSE), ".0001") -> .0001 | K32: --
G33: $ per day
B34: Per Diem | C34: Enter # personnel Eligible → | F34: 0 | K34: =F34*G34 -> 0
B36: Subtotal | L36: =SUM(K11:K32) -> 0
B37: Subtotal including overhead costs calculated at | H37: → | I37: 0.2 | J37: for this project | L37: =L36+K34+I39 -> 0
I38: =L36*I37 -> 0
I39: =I37*L36 -> 0
B40: Additional Equipment: If a specialized piece of equipment for this project is needed, it may be added.
F41: Qty | G41: Hrs/Day | H41: OverTime Hrs | I41: Hourly Rate | J41: OT Rate | K41: Daily Cost | L41: Equipment Total
J42: =(H42*I42)*1.5 -> 0 | K42: =IFERROR(((G42*I42)*F42)+J42,"--") -> 0 | L42: =K42 -> 0
C44: CALCULATED LIQUIDATED DAMAGES PER WORKING DAY = | L44: =L37+L42 -> 0
F45: Rounded to the nearest $50 → | L45: =MROUND(L44,50) -> 0
B47: File this worksheet in your Project File for documentation of calculation of Liquidated Damages. This document becomes proof in court that Liquidated Damages were reasonably calculated.
B49: Use Special Provision | E49: 1-08.9.OPT3.FR1
B51: Insert Liquidated Damages, In the amount of $ | G51: =L45 -> 0 | J51: per working day
B54: Project Engineer
B57: Name | I57: Date
A59: Comments / Assumptions / Staffing Notes:

Sheet Example Form
A1: Design Liquidated Damages Calculation Sheet
B3: SR | C3: 123 | D3: MP | E3: 100.10 to 120.20 | I3: FA# | K3: NH-0123(456)
B5: Project Title | C5: A street to B street - Paving
B8: Liquidated Damages for Failure to Complete the Work or Portions of the Work On Time
B9: For job classifications not listed, enter the "Hourly Rate" & "OT Rate" for each position
B10: State Personnel | C10: Column1 | D10: Column2 | E10: Column3 | F10: Each | G10: Hrs/Day | H10: OverTime Hrs | I10: Hourly Rate | J10: OT Rate | K10: Daily Cost
B11: TT-2 | C11: Density Inspection | F11: =IF(B11<>"",1,"") -> 1 | G11: 8 | H11: 2 | I11: =IFERROR(VLOOKUP( B11,'Update Data'!$C$2:$G$13,5,FALSE), " ") -> 47.1832567 | J11: =IFERROR(VLOOKUP( B11,'Update Data'!$C$2:$I$13,7,FALSE), "") -> 49.6312069 | K11: =IFERROR((((G11*I11)*F11)+(J11*H11)*F11),"--") -> 476.7284674
B12: TT-2 | C12: Density Inspection | F12: 1 | G12: 8 | H12: 2 | I12: =IFERROR(VLOOKUP( B12,'Update Data'!$C$2:$G$13,5,FALSE), " ") -> 47.1832567 | J12: =IFERROR(VLOOKUP( B12,'Update Data'!$C$2:$I$13,7,FALSE), "") -> 49.6312069 | K12: 476.7284674
B13: TT-2 | C13: Street Inspection | F13: 1 | G13: 8 | H13: 2 | I13: =IFERROR(VLOOKUP( B13,'Update Data'!$C$2:$G$13,5,FALSE), " ") -> 47.1832567 | J13: =IFERROR(VLOOKUP( B13,'Update Data'!$C$2:$I$13,7,FALSE), "") -> 49.6312069 | K13: 476.7284674
B14: TE-3 | C14: Bridge Deck | F14: 1 | G14: 8 | H14: 2 | I14: =IFERROR(VLOOKUP( B14,'Update Data'!$C$2:$G$13,5,FALSE), " ") -> 62.04873563 | J14: =IFERROR(VLOOKUP( B14,'Update Data'!$C$2:$I$13,7,FALSE), "") -> 68.39422414 | K14: 633.1783333
B15: TE Intern | C15: Asst. Bridge Deck | F15: 1 | G15: 8 | H15: 2 | I15: =IFERROR(VLOOKUP( B15,'Update Data'!$C$2:$G$13,5,FALSE), " ") -> 40.12368295 | J15: =IFERROR(VLOOKUP( B15,'Update Data'!$C$2:$I$13,7,FALSE), "") -> 40.72144397 | K15: 402.4323515
B16: Other | C16: Consultant ABC Electrical Inspec | F16: 1 | G16: 8 | H16: 2 | I16: 55.5 | J16: 60.05 | K16: 564.1
B17: PE -- TE-5 | C17: Project Engineer | F17: 1 | G17: 2 | H17: =IF(OR(B17="PE -- TE-5",B17="APE -- TE-4"),"0"," ") -> 0 | I17: =IFERROR(VLOOKUP( B17,'Update Data'!$C$2:$G$13,5,FALSE), " ") -> 73.89509579 | J17: =IFERROR(VLOOKUP( B17,'Update Data'!$C$2:$I$13,7,FALSE), "") -> 0.001 | K17: 147.7901916
B18: APE -- TE-4 | C18: Asst. Project Engineer | F18: 1 | G18: 2 | H18: 0 | I18: =IFERROR(VLOOKUP( B18,'Update Data'!$C$2:$G$13,5,FALSE), " ") -> 67.67623563 | J18: =IFERROR(VLOOKUP( B18,'Update Data'!$C$2:$I$13,7,FALSE), "") -> 0.001 | K18: 135.3524713
C19: =IF(B19<>"","Type desc. - i.e. elec. inspec.","") ->  | I19: =IFERROR(VLOOKUP( B19,'Update Data'!$C$2:$G$13,5,FALSE), " ") ->  | J19: =IFERROR(VLOOKUP( B19,'Update Data'!$C$2:$I$13,7,FALSE), "") ->  | K19: --
I20: =IFERROR(VLOOKUP( B20,'Update Data'!$C$2:$G$13,5,FALSE), " ") ->  | J20: =IFERROR(VLOOKUP( B20,'Update Data'!$C$2:$I$13,7,FALSE), "") ->  | K20: --
I21: =IFERROR(VLOOKUP( B21,'Update Data'!$C$2:$G$13,5,FALSE), " ") ->  | J21: =IFERROR(VLOOKUP( B21,'Update Data'!$C$2:$I$13,7,FALSE), "") ->  | K21: --
I22: =IFERROR(VLOOKUP( B22,'Update Data'!$C$2:$G$13,5,FALSE), " ") ->  | J22: =IFERROR(VLOOKUP( B22,'Update Data'!$C$2:$I$13,7,FALSE), "") ->  | K22: --
I23: =IFERROR(VLOOKUP( B23,'Update Data'!$C$2:$G$13,5,FALSE), " ") ->  | J23: =IFERROR(VLOOKUP( B23,'Update Data'!$C$2:$I$13,7,FALSE), "") ->  | K23: --
I24: =IFERROR(VLOOKUP( B24,'Update Data'!$C$2:$G$13,5,FALSE), " ") ->  | J24: =IFERROR(VLOOKUP( B24,'Update Data'!$C$2:$I$13,7,FALSE), "") ->  | K24: --
I25: =IFERROR(VLOOKUP( B25,'Update Data'!$C$2:$G$13,5,FALSE), " ") ->  | J25: =IFERROR(VLOOKUP( B25,'Update Data'!$C$2:$I$13,7,FALSE), "") ->  | K25: --
I26: =IFERROR(VLOOKUP( B26,'Update Data'!$C$2:$G$13,5,FALSE), " ") ->  | J26: =IFERROR(VLOOKUP( B26,'Update Data'!$C$2:$I$13,7,FALSE), "") ->  | K26: --
I27: =IFERROR(VLOOKUP( B27,'Update Data'!$C$2:$G$13,5,FALSE), " ") ->  | J27: =IFERROR(VLOOKUP( B27,'Update Data'!$C$2:$I$13,7,FALSE), "") ->  | K27: --
I28: =IFERROR(VLOOKUP( B28,'Update Data'!$C$2:$G$13,5,FALSE), " ") ->  | J28: =IFERROR(VLOOKUP( B28,'Update Data'!$C$2:$I$13,7,FALSE), "") ->  | K28: --
I29: =IFERROR(VLOOKUP( B29,'Update Data'!$C$2:$G$13,5,FALSE), " ") ->  | J29: =IFERROR(VLOOKUP( B29,'Update Data'!$C$2:$I$13,7,FALSE), "") ->  | K29: --
I30: =IFERROR(VLOOKUP( B30,'Update Data'!$C$2:$G$13,5,FALSE), " ") ->  | J30: =IFERROR(VLOOKUP( B30,'Update Data'!$C$2:$I$13,7,FALSE), "") ->  | K30: --
I31: =IFERROR(VLOOKUP( B31,'Update Data'!$C$2:$G$13,5,FALSE), " ") ->  | J31: =IFERROR(VLOOKUP( B31,'Update Data'!$C$2:$I$13,7,FALSE), "") ->  | K31: --
I32: =IFERROR(VLOOKUP( B32,'Update Data'!$C$2:$G$13,5,FALSE), " ") ->  | J32: =IFERROR(VLOOKUP( B32,'Update Data'!$C$2:$I$13,7,FALSE), "") ->  | K32: --
G33: $ per day
B34: Per Diem | C34: Enter # personnel Eligible → | F34: 3 | G34: 150 | K34: =F34*G34 -> 450
B36: Subtotal | L36: =SUM(K11:K32) -> 3313.03875
B37: Subtotal including overhead costs calculated at | H37: → | I37: 0.2 | L37: =L36+K34+I39 -> 4425.6465
I38: =L36*I37 -> 662.60775
I39: =I37*L36 -> 662.60775
B40: Additional Equipment: If a specialized piece of equipment for this project is needed, it may be added.
F41: Qty | G41: Hrs/Day | H41: OverTime Hrs | I41: Hourly Rate | J41: OT Rate | K41: Daily Cost | L41: Equipment Total
B42: Zipper Barrier Transfer Machine (BTM) | F42: 1 | G42: 2 | I42: 800 | J42: =(H42*I42)*1.5 -> 0 | K42: =IFERROR(((G42*I42)*F42)+J42,"--") -> 1600 | L42: =K42 -> 1600
C44: CALCULATED LIQUIDATED DAMAGES PER WORKING DAY = | L44: =L37+L42 -> 6025.6465
F45: Rounded to the nearest $50 → | L45: =MROUND(L44,50) -> 6050
B47: File this worksheet in your Project File for documentation of calculation of Liquidated Damages. This document becomes proof in court that Liquidated Damages were reasonably calculated.
B49: Use Special Provision | E49: 1-08.9.OPT3.FR1
B51: Insert Liquidated Damages, In the amount of $ | G51: =L45 -> 6050 | J51: per working day
B54: Project Engineer
B57: Name | I57: Date
A59: Comments / Assumptions / Staffing Notes:

Sheet Update Data
A1: Quantity | B1: Hours per day | C1: Position | D1: PLACE HOLDER | E1: 2023 Annual Step L | F1: Benefits | G1: 2023- Loaded Rate | H1: 2023- Regular Rate | I1: 2023- OT Rate | J1: 2024 Annual Step L | K1: Benefits | L1: 2024- Loaded Rate | M1: 2024- Regular Rate | N1: 2024- OT Rate
A2: 1 | B2: 1 | C2: TE-1 | E2: 78131.34 | F2: 31136 | G2: 52.33110153 | H2: =E2/2088 -> 37.41922414 | I2: =H2*1.5 -> 56.12883621 | J2: 80475 | K2: 31452 | L2: =(J2+K2)/2088 -> 53.60488506 | M2: =J2/2088 -> 38.54166667 | N2: =M2*1.5 -> 57.8125
A3: 2 | B3: 2 | C3: TE-2 | E3: 86222.01 | F3: 32660 | G3: 56.93582854 | H3: =E3/2088 -> 41.29406609 | I3: =H3*1.5 -> 61.94109914 | J3: 88809 | K3: 33017 | L3: =(J3+K3)/2088 -> 58.34578544 | M3: =J3/2088 -> 42.53304598 | N3: =M3*1.5 -> 63.79956897
A4: 3 | B4: 3 | C4: TE-3 | E4: 95204.76 | F4: 34353 | G4: 62.04873563 | H4: 45.59614943 | I4: 68.39422414 | J4: 98061 | K4: 34756 | L4: 63.60967433 | M4: 46.96408046 | N4: 70.44612069
A5: 4 | B5: 4 | C5: TT-1 | E5: 55222.23 | F5: 26820 | G5: 39.29225575 | H5: 26.44742816 | I5: 39.67114224 | J5: 56879 | K5: 27021 | L5: 40.18199234 | M5: 27.24090038 | N5: 40.86135057
A6: 5 | B6: 5 | C6: TT-2 | E6: 69086.64 | F6: 29432 | G6: 47.1832567 | H6: 33.08747126 | I6: 49.6312069 | J6: 71159 | K6: 29703 | L6: 48.30555556 | M6: 34.07998084 | N6: 51.11997126
A7: 6 | B7: 6 | C7: TT-3 | E7: 78131.34 | F7: 31136 | G7: 52.33110153 | H7: 37.41922414 | I7: 56.12883621 | J7: 80475 | K7: 31452 | L7: 53.60488506 | M7: 38.54166667 | N7: 57.8125
A8: 7 | B8: 7 | C8: TE Intern | E8: 56684.25 | F8: 27094 | G8: 40.12368295 | H8: 27.14762931 | I8: 40.72144397 | J8: 58385 | K8: 27304 | L8: 41.0387931 | M8: 27.96216475 | N8: 41.94324713
A9: 8 | B9: 8 | C9: PE -- TE-5 | E9: 116019.96 | F9: 38273 | G9: 73.89509579 | H9: 55.56511494 | I9: 0.001 | J9: 119501 | K9: 38781 | L9: 75.80555556 | M9: 57.23227969 | N9: 0.001
A10: 9 | B10: 9 | C10: APE -- TE-4 | E10: 105091.98 | F10: 36216 | G10: 67.67623563 | H10: 50.33140805 | I10: 0.001 | J10: 108245 | K10: 36668 | L10: 69.40277778 | M10: 51.8414751 | N10: 0.001
A11: 10 | B11: 10 | C11: Other
A12: 11 | B12: 0 | C12: Select a Job Class
A13: 12
A14: 13
A15: 14
A16: 15
A17: 16
A18: 17
A19: 18
A20: 19
A21: 20
A31: JOB CLASS LISTING LINK
A32: NOTE - THIS INFORMATION IS FROM WSDOT PAYROLL SITE: https://wsdot.sharepoint.com/:u:/r/teams/EngineeringAnalysisOffice/Shared%20Documents/Estimating/Liquidated%20Damages/Salary%20Pricing%20Tool.url?csf=1&web=1&e=c27pCf
